bitfinex/quotes_ETHUSD_20251028
["timestamp","ask_amount","ask_price","bid_price","bid_amount"]
[1761671593783,2.53466214,4143.1,4142.6,2.15]
[1761671593981,2.41379397,4142.9,4142.6,2.15]
[1761671594184,2.41375287,4143.0,4142.4,1.6752]
[1761671594391,0.121,4143.1,4142.4,1.6752]
[1761671594392,2.41377227,4142.9,4142.4,1.6752]
[1761671594604,2.4140012,4142.5,4142.3,0.002]
[1761671594954,2.149,4142.9,4142.3,0.002]
[1761671595379,0.001,4143.1,4142.3,0.002]
[1761671595563,2.149,4143.0,4142.3,2.41606787]
[1761671595889,0.12,4142.9,4142.3,0.002]
[1761671596059,2.53376857,4142.9,4142.3,0.002]
[1761671596263,2.41384675,4142.8,4142.3,0.002]
[1761671596465,0.12,4142.9,4142.3,0.002]
[1761671596788,2.41397028,4142.6,4142.3,0.002]
[1761671596955,0.12,4142.5,4142.3,0.002]
[1761671598461,2.41405948,4142.4,4142.3,0.002]
[1761671600397,4.56305948,4142.4,4142.3,0.002]
[1761671602709,5.08256922,4142.4,4142.3,0.002]
[1761671602875,5.8442225,4142.4,4142.3,0.002]
[1761671607200,3.6952225,4142.4,4142.3,0.002]
[1761671607389,4.56205948,4142.4,4142.3,0.002]
[1761671607590,5.08123896,4142.4,4142.3,0.002]
[1761671608000,2.93323896,4142.4,4142.3,0.002]
[1761671608305,4.56205948,4142.4,4142.3,0.002]
[1761671609393,2.148,4142.4,4142.3,0.002]
[1761671609599,0.12,4142.9,4142.3,0.002]
[1761671609811,0.12,4142.9,4142.3,0.16972]
[1761671610017,0.12,4142.9,4142.7,2.4138425]
[1761671610518,0.12,4142.9,4142.7,2.41387391]
[1761671611015,0.12,4142.9,4142.3,0.002]
[1761671611217,0.12,4142.9,4142.4,2.41404224]
[1761671611424,0.12,4142.9,4142.3,2.41610029]
[1761671611593,0.12,4142.9,4142.5,2.41395599]
[1761671612215,0.12,4142.9,4142.6,2.4139252]
[1761671612381,0.12,4142.9,4142.4,2.41405137]
[1761671612894,0.121,4142.9,4142.3,0.002]
[1761671613088,0.121,4142.9,4142.4,2.41405472]
[1761671613283,0.121,4142.9,4142.4,2.41405341]
[1761671614176,0.121,4142.9,4142.3,0.002]
[1761671614881,2.53477156,4142.9,4142.3,0.002]
[1761671615086,2.5348006,4142.9,4142.3,0.002]
[1761671615681,2.41390046,4142.7,4142.3,0.002]
[1761671615908,0.12,4142.6,4142.3,0.002]
[1761671616495,0.37348356,4142.6,4142.3,0.002]
[1761671616693,2.4140012,4142.5,4142.3,0.002]
[1761671617009,2.41405948,4142.4,4142.3,0.002]
[1761671617219,4.56105948,4142.4,4142.3,0.002]
[1761671619090,2.147,4142.4,4142.3,0.002]
[1761671619787,0.001,4142.9,4142.3,0.002]
[1761671620298,0.001,4142.9,4142.5,2.41394719]
[1761671620496,0.001,4142.9,4142.5,0.49500587]
[1761671620729,0.001,4142.9,4142.6,0.12]
[1761671620887,0.001,4142.9,4142.7,2.41388128]
[1761671621202,0.001,4142.9,4142.7,2.41388466]
[1761671621405,0.001,4142.9,4142.8,2.41382639]
[1761671621722,0.001,4142.9,4142.8,2.43796465]
[1761671621922,0.001,4142.9,4142.8,2.41382639]
[1761671622119,0.001,4142.9,4142.8,3.1233975]
[1761671622326,0.001,4142.9,4142.8,4.6785975]
[1761671622491,0.001,4142.9,4142.8,4.70273576]
[1761671623013,0.001,4142.9,4142.8,4.6785975]
[1761671623989,0.001,4142.9,4142.8,2.26477111]
[1761671624189,0.001,4142.9,4142.8,4.6785975]
[1761671625622,0.001,4142.9,4142.7,2.148]
[1761671626003,0.001,4142.9,4142.8,2.41382639]
[1761671627936,0.001,4142.9,4142.7,2.148]
[1761671627937,0.001,4142.9,4142.7,4.56187485]
[1761671628228,0.001,4142.9,4142.3,0.002]
[1761671628794,2.41388466,4142.7,4142.3,0.002]
[1761671629189,0.001,4142.9,4142.3,0.002]
[1761671629426,2.41405948,4142.4,4142.3,0.002]
[1761671630035,2.89686124,4142.4,4142.3,0.002]
[1761671638066,3.41605124,4142.4,4142.3,0.002]
[1761671638276,2.89686124,4142.4,4142.3,0.002]
[1761671639341,3.41605973,4142.4,4142.3,0.002]
[1761671640347,2.89686124,4142.4,4142.3,0.002]
[1761671640653,4.85756524,4142.4,4142.3,0.002]
[1761671640855,5.37674661,4142.4,4142.3,0.002]
[1761671641058,5.47335621,4142.4,4142.3,0.002]
[1761671641971,7.11624261,4142.4,4142.3,0.002]
[1761671642140,0.51918137,4142.4,4142.3,0.002]
[1761671642338,4.55905948,4142.4,4142.3,0.002]
[1761671642562,2.146,4142.6,4142.3,0.002]
[1761671642760,2.41405948,4142.4,4142.3,0.002]
[1761671643140,2.146,4142.6,4142.3,0.002]
[1761671643374,2.41400176,4142.5,4142.3,0.002]
[1761671643976,2.41405948,4142.4,4142.3,0.002]
[1761671644183,2.41401443,4142.5,4142.3,0.002]
[1761671644742,2.3607,4142.6,4142.3,0.002]
[1761671644952,2.41405948,4142.4,4142.3,0.002]
[1761671645353,3.11146118,4142.4,4142.3,0.002]
[1761671645671,2.41405948,4142.4,4142.3,0.002]
[1761671645869,2.146,4142.6,4142.3,0.002]
[1761671646472,0.001,4142.9,4142.3,0.002]
[1761671646670,0.12,4142.5,4142.3,0.002]
[1761671649261,2.5340013,4142.5,4142.3,0.002]
[1761671649760,0.121,4142.5,4142.3,0.002]
[1761671651574,2.53501099,4142.5,4142.3,0.002]
[1761671652293,2.41405948,4142.4,4142.3,0.002]
[1761671652594,2.53500628,4142.5,4142.3,0.002]
[1761671653897,0.121,4142.5,4142.3,0.002]
[1761671654103,2.53501924,4142.5,4142.3,0.002]
[1761671655611,0.121,4142.5,4142.3,0.002]
[1761671655764,0.121,4142.5,4142.3,4.5461958]
[1761671656783,0.001,4142.5,4142.4,2.41405948]
[1761671657165,0.001,4142.5,4142.3,5.24223685]
[1761671657509,0.001,4142.5,4142.4,2.41405948]
[1761671658095,0.001,4142.5,4142.4,7.07825528]
[1761671658298,0.001,4142.5,4142.4,2.53405948]
[1761671658503,0.001,4142.5,4142.4,3.76760618]
[1761671658702,0.001,4142.5,4142.4,5.8977425]
[1761671658863,0.001,4142.5,4142.4,4.5441958]
[1761671659560,0.001,4142.5,4142.4,6.95825528]
[1761671659763,0.001,4142.5,4142.4,4.5441958]
[1761671661390,0.001,4142.5,4142.3,0.002]
[1761671661721,0.121,4142.5,4142.3,0.002]
[1761671662224,0.121,4142.5,4142.4,4.5441958]
[1761671664020,0.121,4142.5,4142.3,0.002]
[1761671665317,0.121,4142.5,4142.3,4.5461958]
[1761671667395,4.55805948,4142.4,4142.3,0.002]
[1761671667815,5.07799771,4142.4,4142.3,0.002]
[1761671668010,2.93399771,4142.4,4142.3,0.002]
[1761671668334,5.07799771,4142.4,4142.3,0.002]
[1761671679153,5.17460428,4142.4,4142.3,0.002]
[1761671679455,6.51433034,4142.4,4142.3,0.002]
[1761671680660,7.16296373,4142.4,4142.3,0.002]
[1761671681236,6.51433034,4142.4,4142.3,0.002]
[1761671683748,13.01923014,4142.4,4142.3,0.002]
[1761671683949,2.81979661,4142.0,4141.9,1e-08]
[1761671684178,10.96215215,4142.0,4141.9,1e-08]
[1761671684476,4.37517148,4141.7,4141.6,1e-08]
[1761671684647,11.58430551,4141.7,4141.6,1e-08]
[1761671685273,11.68094359,4141.7,4141.6,1e-08]
[1761671685935,9.13043959,4141.7,4141.6,1e-08]
[1761671686167,12.69761922,4141.7,4141.6,1e-08]
[1761671686349,13.34622986,4141.7,4141.6,1e-08]
[1761671686652,11.20122986,4141.7,4141.6,1e-08]
[1761671686854,13.10312322,4141.7,4141.6,1e-08]
[1761671690406,13.10312322,4141.7,4141.3,1e-08]
[1761671690407,8.91954219,4141.4,4141.3,1e-08]
[1761671690569,12.07935965,4141.4,4141.3,1e-08]
[1761671694404,12.07935965,4141.4,4140.8,1e-08]
[1761671694405,4.37563795,4140.9,4140.8,1e-08]
[1761671694718,12.23456837,4140.9,4140.8,1e-08]
[1761671695000,11.58677198,4140.9,4140.8,1e-08]
[1761671695204,11.58677198,4140.9,4140.1,0.01]
[1761671695205,0.405504,4140.7,4140.1,0.01]
[1761671695408,6.5048998,4140.2,4140.1,0.01]
[1761671695569,11.58540792,4140.2,4140.1,0.01]
[1761671696005,12.31039496,4140.2,4140.1,0.01]
[1761671698815,7.76619916,4140.2,4140.1,0.01]
[1761671699114,6.55215914,4140.2,4140.1,0.01]
[1761671699409,8.69815914,4140.2,4140.1,0.01]
[1761671700177,6.14665514,4140.2,4140.1,0.01]
[1761671700608,7.7747508,4140.2,4140.1,0.01]
[1761671700808,2.146,4140.2,4140.1,0.01]
[1761671701008,4.56134225,4140.2,4140.1,0.01]
[1761671704413,6.11654225,4140.2,4140.1,0.01]
[1761671704614,7.04009516,4140.2,4140.1,0.01]
[1761671704824,8.50478604,4140.2,4140.1,0.01]
[1761671704994,2.41592578,4139.2,4139.1,0.01]
[1761671705217,4.56192578,4139.2,4139.1,0.01]
[1761671705736,4.65860099,4139.2,4139.1,0.01]
[1761671706439,6.21380099,4139.2,4139.1,0.01]
[1761671706742,8.02815106,4139.2,4139.1,0.01]
[1761671707126,8.67583397,4139.2,4139.1,0.01]
[1761671708022,8.67569399,4139.2,4139.1,0.01]
[1761671708705,2.4163928,4138.4,4138.3,0.002]
[1761671708903,4.5623928,4138.4,4138.3,0.002]
[1761671709102,5.05727203,4138.4,4138.3,0.002]
[1761671709344,4.5623928,4138.4,4138.3,0.002]
[1761671709643,4.65909162,4138.4,4138.3,0.002]
[1761671710164,11.68197622,4138.4,4138.3,0.002]
[1761671710807,2.82236401,4137.6,4137.1,0.01]
[1761671711036,15.61395561,4137.6,4137.1,0.01]
[1761671711240,18.61385668,4137.6,4137.1,0.01]
[1761671711462,2.82259768,4137.2,4137.1,0.01]
[1761671711748,2.82259768,4137.2,4135.6,0.002]
[1761671711749,4.37814827,4136.6,4136.5,1e-08]
[1761671711901,7.04513307,4136.6,4136.5,1e-08]
[1761671712102,8.05608353,4136.6,4136.5,1e-08]
[1761671712548,8.15283427,4136.6,4136.5,1e-08]
[1761671713268,0.5179848,4136.6,4136.5,1e-08]
[1761671713428,2.15,4136.6,4136.5,1e-08]
[1761671714160,2.41713012,4137.2,4136.5,1e-08]
[1761671714361,15.26200186,4138.4,4136.5,1e-08]
[1761671714362,2.4172218,4137.0,4136.5,1e-08]
[1761671714538,2.41744074,4136.7,4136.5,1e-08]
[1761671714843,2.15,4136.6,4136.5,1e-08]
[1761671716520,4.56744427,4136.6,4136.5,1e-08]
[1761671716738,6.52814827,4136.6,4136.5,1e-08]
[1761671716948,7.14125662,4136.6,4136.5,1e-08]
[1761671717149,8.09711674,4136.6,4136.5,1e-08]
[1761671717649,8.59711674,4136.6,4136.5,1e-08]
[1761671718217,1.960704,4136.5,4136.1,1e-08]
[1761671718451,4.37838206,4136.2,4136.1,1e-08]
[1761671718657,8.49068236,4136.2,4136.1,1e-08]
[1761671719155,7.84367623,4136.2,4136.1,1e-08]
[1761671719648,8.70740476,4136.2,4136.1,1e-08]
[1761671719853,9.14251402,4136.2,4136.1,1e-08]
[1761671720157,8.73701002,4136.2,4136.1,1e-08]
[1761671720360,6.58401002,4136.2,4136.1,1e-08]
[1761671720567,8.70202848,4136.2,4136.1,1e-08]
[1761671720768,7.84367623,4136.2,4136.1,1e-08]
[1761671721225,8.70202848,4136.2,4136.1,1e-08]
[1761671721825,11.24502848,4136.2,4136.1,1e-08]
[1761671722027,5.69067623,4136.2,4136.1,1e-08]
[1761671722251,7.84367623,4136.2,4136.1,1e-08]
[1761671722639,8.48685524,4136.2,4136.1,1e-08]
[1761671722835,3.72997223,4136.2,4136.1,1e-08]
[1761671723027,5.36661275,4136.2,4136.1,1e-08]
[1761671723225,5.88115482,4136.2,4136.1,1e-08]
[1761671723451,7.84185882,4136.2,4136.1,1e-08]
[1761671723892,7.84285882,4136.2,4136.1,1e-08]
[1761671724160,5.68885882,4136.2,4136.1,1e-08]
[1761671724368,7.84285882,4136.2,4136.1,1e-08]
[1761671724539,5.68885882,4136.2,4136.1,1e-08]
[1761671724859,7.32831675,4136.2,4136.1,0.00200001]
[1761671725056,4.76981275,4136.2,4136.1,0.00200001]
[1761671725258,6.12787806,4136.2,4136.1,0.00200001]
[1761671725981,4.57267806,4136.2,4136.1,0.00200001]
[1761671726259,6.12787806,4136.2,4136.1,0.00200001]
[1761671729160,6.12687806,4136.2,4136.1,0.00200001]
[1761671729465,4.57167806,4136.2,4136.1,0.00200001]
[1761671730034,2.41867806,4136.2,4136.1,0.00200001]
[1761671730242,0.001,4136.2,4136.1,0.00200001]
[1761671730439,2.154,4136.2,4136.1,0.00200001]
[1761671730770,2.41867806,4136.2,4136.1,0.00200001]
[1761671731075,2.154,4136.2,4136.1,0.00200001]
[1761671731291,4.57167806,4136.2,4136.1,0.00200001]
[1761671732651,5.27060282,4136.2,4136.1,0.00200001]
[1761671732956,5.78675983,4136.2,4136.1,0.00200001]
[1761671733352,7.74746383,4136.2,4136.1,0.00200001]
[1761671733763,8.60581608,4136.2,4136.1,0.00200001]
[1761671733980,5.59446383,4136.2,4136.1,0.00200001]
[1761671734147,8.60970307,4136.2,4136.1,0.00200001]
[1761671734348,5.59446383,4136.2,4136.1,0.00200001]
[1761671734766,7.74846383,4136.2,4136.1,0.00200001]
[1761671735463,8.61058467,4136.2,4136.1,0.00200001]
[1761671735660,7.74846383,4136.2,4136.1,0.00200001]
[1761671736481,8.24846383,4136.2,4136.1,0.002]
[1761671736781,2.82347435,4135.7,4135.6,0.002]
[1761671737085,6.88147357,4135.7,4135.6,0.002]
[1761671737450,6.01776814,4135.7,4135.6,0.002]
[1761671738781,3.79900173,4135.7,4135.6,0.002]
[1761671739088,2.93412736,4135.7,4135.6,0.002]
[1761671739288,5.08812736,4135.7,4135.6,0.002]
[1761671739592,5.95300173,4135.7,4135.6,0.002]
[1761671740584,5.08812736,4135.7,4135.6,0.002]
[1761671743694,6.37378926,4135.7,4135.6,0.002]
[1761671743893,7.6693474,4135.7,4135.6,0.002]
[1761671744407,9.2245474,4135.7,4135.6,0.002]
[1761671744587,7.92898926,4135.7,4135.6,0.002]
[1761671744900,5.77498926,4135.7,4135.6,0.002]
[1761671745195,7.93098926,4135.7,4135.6,0.002]
[1761671746082,5.77498926,4135.7,4135.6,0.002]
[1761671746292,7.93098926,4135.7,4135.6,0.002]
[1761671747981,5.77498926,4135.7,4135.6,0.002]
[1761671748291,7.92998926,4135.7,4135.6,0.002]
[1761671749665,4.37890824,4135.3,4135.2,0.002]
[1761671749897,7.88528913,4135.3,4135.2,0.002]
[1761671750911,7.88528913,4135.3,4135.1,1e-08]
[1761671751120,7.43812373,4135.2,4135.1,1e-08]
[1761671751601,2.82435166,4134.2,4132.3,2.41991894]
[1761671751780,7.05270867,4134.2,4132.4,2.41989243]
[1761671751981,8.37188378,4134.2,4132.1,0.01]
[1761671752176,5.80937978,4134.2,4132.1,0.01]
[1761671752383,6.64720467,4134.2,4133.0,2.41954064]
[1761671752694,4.49020467,4134.2,4133.1,2.4294864]
[1761671752899,6.64720467,4134.2,4133.1,2.4294864]
[1761671753100,4.49020467,4134.2,4133.1,2.4294864]
[1761671753407,7.51408448,4134.2,4133.1,2.42948849]
[1761671753615,5.35708448,4134.2,4133.1,2.42948849]
[1761671753909,7.51408448,4134.2,4133.1,0.01]
[1761671754418,6.64720467,4134.2,4133.1,2.42948677]
[1761671754721,6.64720467,4134.2,4133.1,0.01]
[1761671754919,6.64720467,4134.2,4133.1,2.42948568]
[1761671755482,2.93500467,4134.2,4133.1,0.01]
[1761671755721,5.09100467,4134.2,4133.1,0.01]
[1761671756219,5.09100467,4134.2,4133.2,2.41941566]
[1761671756522,5.09100467,4134.2,4133.3,2.41937055]
[1761671756686,5.09100467,4134.2,4133.1,0.01]
[1761671757081,5.09100467,4134.2,4133.3,2.41936757]
[1761671757285,5.09100467,4134.2,4133.4,2.41931336]
[1761671757900,5.09100467,4134.2,4133.2,2.41942695]
[1761671758095,5.09100467,4134.2,4133.1,0.01]
[1761671759301,5.09100467,4134.2,4133.1,2.42946899]
[1761671759496,5.09100467,4134.2,4133.2,2.42143222]
[1761671759719,5.09100467,4134.2,4133.3,2.41936927]
[1761671760021,5.09100467,4134.2,4133.2,0.002]
[1761671760331,6.31245403,4134.2,4133.2,0.002]
[1761671760521,7.86765403,4134.2,4133.2,0.002]
[1761671760735,8.73453384,4134.2,4133.2,0.002]
[1761671761023,7.86765403,4134.2,4133.2,0.002]
[1761671761224,9.16923512,4134.2,4133.2,0.002]
[1761671761548,7.86765403,4134.2,4133.2,0.002]
[1761671762115,8.73397124,4134.2,4133.2,0.002]
[1761671762540,6.57797124,4134.2,4133.2,0.002]
[1761671762756,8.73397124,4134.2,4133.2,0.002]
[1761671763130,8.73297124,4134.2,4133.2,0.002]
[1761671764553,7.86665403,4134.2,4133.2,0.002]
[1761671766063,8.73297124,4134.2,4133.2,0.002]
[1761671766235,2.82464423,4133.7,4133.2,0.002]
[1761671766427,6.81830865,4133.7,4133.2,0.002]
[1761671766620,7.33446566,4133.7,4133.2,0.002]
[1761671768138,4.77296166,4133.7,4133.2,0.002]
[1761671768457,6.64649724,4133.7,4133.2,0.002]
[1761671768642,4.57514023,4133.7,4133.2,0.002]
[1761671769071,5.09460214,4133.7,4133.2,0.002]
[1761671770238,6.64980214,4133.7,4133.2,0.002]
[1761671771177,7.05530614,4133.7,4133.2,0.002]
[1761671771378,8.0676982,4133.7,4133.2,0.002]
[1761671775483,8.71728944,4133.7,4133.2,0.002]
[1761671776179,8.0676982,4133.7,4133.2,0.002]
[1761671777379,8.71728944,4133.7,4133.2,0.002]
[1761671777555,8.0676982,4133.7,4133.2,0.002]
[1761671777958,7.6601942,4133.7,4133.2,0.002]
[1761671778159,6.64780214,4133.7,4133.2,0.002]
[1761671778359,5.09260214,4133.7,4133.2,0.002]
[1761671779892,5.74219338,4133.7,4133.2,0.002]
[1761671781795,5.09260214,4133.7,4133.2,0.002]
[1761671782800,2.93860214,4133.7,4133.2,0.002]
[1761671783004,0.51946191,4133.7,4133.2,0.002]
[1761671783205,0.1208,4133.7,4133.2,0.002]
[1761671783599,0.1208,4133.7,4133.3,2.41933465]
[1761671783767,0.1208,4133.7,4133.2,2.42142197]
[1761671784190,0.1208,4133.7,4133.2,0.002]
[1761671784611,0.1208,4133.7,4133.2,2.42142584]
[1761671784813,0.1208,4133.7,4133.2,0.002]
[1761671785413,0.1208,4133.7,4133.2,2.42143207]
[1761671785610,0.1208,4133.7,4133.2,0.002]
[1761671785819,0.1208,4133.7,4133.3,2.41934988]
[1761671786025,0.1208,4133.7,4133.2,0.002]
[1761671786724,2.53994023,4133.7,4133.2,0.002]
[1761671786900,0.1208,4133.7,4133.2,0.002]
[1761671787105,0.1208,4133.7,4133.2,2.42141591]
[1761671787702,0.1208,4133.7,4133.2,0.002]
[1761671787909,0.1208,4133.7,4133.3,2.41937054]
[1761671788308,0.1208,4133.7,4133.3,2.41937391]
[1761671788914,2.153,4133.9,4133.6,2.66333615]
[1761671789230,2.153,4133.9,4133.6,0.24413739]
[1761671789416,2.153,4133.9,4133.6,2.66332749]
[1761671789929,2.153,4133.9,4133.6,0.24413739]
[1761671790135,0.1208,4134.0,4133.6,0.002]
[1761671790801,0.1208,4134.0,4133.7,2.41911077]
[1761671791610,0.1208,4134.0,4133.7,2.41914023]
[1761671792111,0.1208,4134.0,4133.6,0.002]
[1761671792544,0.1208,4134.0,4133.6,2.42117106]
[1761671792738,0.1208,4134.0,4133.7,0.63956753]
[1761671793147,0.1208,4134.0,4133.6,0.002]
[1761671793148,2.152,4133.9,4133.6,0.002]
[1761671793344,2.41914023,4133.7,4133.6,0.002]
[1761671793764,2.41908459,4133.8,4133.6,0.002]
[1761671794060,4.57102454,4133.9,4133.6,0.002]
[1761671794213,2.41908171,4133.8,4133.6,0.002]
[1761671794415,2.152,4133.9,4133.6,0.002]
[1761671794859,2.41908171,4133.8,4133.6,0.002]
[1761671795017,2.152,4133.9,4133.6,0.002]
[1761671795392,2.41914023,4133.7,4133.6,0.002]
[1761671796217,3.11826242,4133.7,4133.6,0.002]
[1761671796434,3.63886914,4133.7,4133.6,0.002]
[1761671798472,4.04437314,4133.7,4133.6,0.002]
[1761671798753,3.63886914,4133.7,4133.6,0.002]
[1761671799456,5.79086914,4133.7,4133.6,0.002]
[1761671800549,2.67360672,4133.7,4133.6,0.002]
[1761671800723,4.57214023,4133.7,4133.6,0.002]
[1761671800922,5.09274695,4133.7,4133.6,0.002]
[1761671801845,2.67360672,4133.7,4133.6,0.002]
[1761671802043,5.09274695,4133.7,4133.6,0.002]
[1761671802417,2.67360672,4133.7,4133.6,0.002]
[1761671802927,2.153,4133.8,4133.6,0.002]
[1761671803132,0.1208,4133.9,4133.6,0.002]
[1761671803328,0.001,4134.0,4133.6,2.42114661]
[1761671803563,0.001,4134.0,4133.7,0.24211466]
[1761671803763,0.001,4134.0,4133.8,2.41902648]
[1761671804062,0.001,4134.0,4133.7,2.4190994]
[1761671804248,0.001,4134.0,4133.6,2.42119323]
[1761671804454,0.001,4134.0,4133.6,0.002]
[1761671804766,0.001,4134.0,4133.6,2.42115875]
[1761671804929,0.001,4134.0,4133.6,2.91728574]
[1761671805673,0.001,4134.0,4133.6,0.49812699]
[1761671806046,0.001,4134.0,4133.6,0.002]
[1761671808078,0.001,4134.0,4133.6,2.42115439]
[1761671808572,0.001,4134.0,4133.6,0.002]
[1761671808776,0.001,4134.0,4133.8,2.41907552]
[1761671809649,0.001,4134.0,4133.9,2.41902319]
[1761671809843,0.001,4134.0,4133.9,2.90303529]
[1761671814081,0.001,4134.0,4133.6,0.002]
[1761671814376,2.41914023,4133.7,4133.6,0.002]
[1761671815439,2.41902319,4133.9,4133.6,0.002]
[1761671815440,2.154,4133.9,4133.6,0.002]
[1761671815639,2.41903605,4133.9,4133.6,0.002]
[1761671815839,2.41908677,4133.8,4133.6,0.002]
[1761671816069,2.41903096,4133.9,4133.6,0.002]
[1761671816476,0.001,4134.0,4133.6,0.002]
[1761671817066,0.001,4134.0,4133.6,2.42118695]
[1761671817443,0.001,4134.0,4133.6,0.002]
[1761671817990,2.41996775,4134.0,4133.6,0.002]
[1761671818296,0.001,4134.0,4133.6,0.002]
[1761671819508,0.001,4134.0,4133.6,2.4211621]
[1761671820221,0.001,4134.0,4133.6,0.002]
[1761671820370,0.001,4134.0,4133.8,2.41903725]
[1761671820581,0.001,4134.0,4133.6,0.002]
[1761671821422,2.41997946,4134.0,4133.6,0.002]
[1761671821781,2.4190356,4133.9,4133.6,0.002]
[1761671822329,2.41914023,4133.7,4133.6,0.002]
[1761671822480,2.90306242,4133.7,4133.6,0.002]
[1761671822815,3.42367174,4133.7,4133.6,0.002]
[1761671823204,5.57867174,4133.7,4133.6,0.002]
[1761671824095,5.05806242,4133.7,4133.6,0.002]
[1761671824302,4.57414023,4133.7,4133.6,0.002]
[1761671824497,2.41914023,4133.7,4133.6,0.002]
[1761671825219,4.57405553,4133.9,4133.6,0.002]
[1761671825517,2.42001143,4134.0,4133.6,0.002]
[1761671825718,0.1208,4133.7,4133.6,0.002]
[1761671827002,2.53994023,4133.7,4133.6,0.002]
[1761671827532,3.0359367,4133.7,4133.6,0.002]
[1761671827755,0.1218,4134.0,4133.6,0.002]
[1761671828038,2.41912246,4133.8,4133.6,0.002]
[1761671828331,2.41914023,4133.7,4133.6,0.002]
[1761671829637,0.001,4134.0,4133.9,2.41902319]
[1761671829918,0.001,4134.0,4133.9,0.48401634]
[1761671830132,0.001,4134.0,4133.9,2.03921634]
[1761671830314,0.001,4134.0,4133.9,2.41902319]
[1761671830537,0.001,4134.0,4133.6,2.159]
[1761671830711,0.001,4134.0,4133.7,2.41909297]
[1761671830917,0.001,4134.0,4133.9,2.41902319]
[1761671832112,0.001,4134.0,4133.7,1.5552]
[1761671832319,0.001,4134.0,4133.8,0.61333421]
[1761671832520,0.001,4134.0,4133.9,2.41902319]
[1761671832924,0.001,4134.0,4133.9,3.97422319]
[1761671838248,0.001,4134.0,4133.9,4.50052719]
[1761671839714,0.001,4134.0,4133.9,4.37972719]
[1761671839945,0.001,4134.0,4133.9,5.48183717]
[1761671840144,0.001,4134.0,4133.9,5.45764694]
[1761671845166,0.001,4134.0,4133.9,9.29764694]
[1761671845370,0.001,4134.5,4134.1,0.405504]
[1761671845583,0.001,4134.5,4134.4,18.33346923]
[1761671845743,0.001,4134.5,4134.4,20.62400092]
[1761671847273,0.001,4134.5,4134.4,24.46400092]
[1761671848175,0.001,4134.7,4134.6,4.37931765]
[1761671848471,0.001,4136.2,4135.2,4.37896672]
[1761671848670,0.001,4136.2,4135.2,20.4860013]
[1761671848838,0.001,4136.2,4135.2,22.28213262]
[1761671849039,0.001,4136.2,4135.2,20.12913262]
[1761671849240,0.001,4136.2,4135.2,6.17509804]
[1761671849446,0.001,4136.2,4135.2,6.53196672]
[1761671853085,0.001,4136.2,4135.2,20.4860013]
[1761671853987,1e-08,4135.4,4135.3,4.37890824]
[1761671854373,1e-08,4135.4,4135.3,10.37190824]
[1761671855174,1e-08,4135.4,4135.3,6.53190824]
[1761671855488,1e-08,4135.4,4135.3,7.7895633]
[1761671861720,1e-08,4135.4,4135.3,11.6315633]
[1761671861933,0.00100001,4135.4,4135.3,11.6315633]
[1761671864710,0.00100001,4135.4,4135.3,11.6295633]
[1761671866331,0.00100001,4135.4,4135.3,25.58359788]
[1761671874750,0.00100001,4135.4,4135.3,5.6385633]
[1761671874911,0.00100001,4135.4,4135.3,7.7875633]
[1761671876546,0.00100001,4135.4,4135.3,21.62079788]
[1761671876747,0.00100001,4135.4,4135.3,21.74159788]
[1761671877814,0.00100001,4135.4,4135.3,25.58159788]
[1761671878322,0.00100001,4135.4,4135.3,25.81969562]
[1761671879232,0.00100001,4135.4,4135.3,25.58159788]
[1761671879751,0.051,4135.9,4135.7,2.82347435]
[1761671879947,0.051,4135.9,4135.7,10.86634507]
[1761671880124,0.051,4135.9,4135.7,13.01634507]
[1761671880311,0.051,4135.9,4135.8,2.41791189]
[1761671880645,0.051,4135.9,4135.8,4.37861589]
[1761671880849,0.001,4136.3,4135.8,4.37861589]
[1761671880850,0.001,4136.3,4135.8,1.960704]
[1761671881055,0.001,4136.3,4136.2,10.18638088]
[1761671881346,0.001,4136.3,4136.2,12.45718088]
[1761671882613,0.001,4136.3,4136.2,16.29718088]
[1761671883060,0.001,4136.7,4136.4,2.41756116]
[1761671883228,0.1208,4138.1,4137.0,8.63071335]
[1761671883568,0.01,4138.4,4137.2,0.405504]
[1761671883729,0.01,4138.4,4137.3,6.52673926]
[1761671884083,0.01,4138.4,4137.3,10.48753926]
[1761671884212,0.01,4138.4,4138.3,8.22445001]
[1761671884416,0.01,4138.4,4138.3,10.37445001]
[1761671884668,0.01,4138.4,4138.3,10.49525001]
[1761671885017,0.01,4138.4,4138.3,12.45965472]
[1761671885217,0.01,4138.4,4138.3,12.86515872]
[1761671885716,0.01,4138.4,4138.3,20.97617464]
[1761671887761,0.05,4138.9,4138.8,2.82166327]
[1761671887945,0.05,4138.9,4138.8,6.52586327]
[1761671888264,0.05,4138.9,4138.8,7.54087339]
[1761671888635,1e-08,4138.9,4138.8,7.54087339]
[1761671888823,0.01,4140.4,4138.9,4.37680489]
[1761671889154,0.01,4140.4,4139.4,1.960704]
[1761671889358,0.01,4140.4,4140.3,0.405504]
[1761671889651,0.01,4140.4,4140.3,7.11911253]
[1761671891521,0.01,4141.4,4140.5,0.405504]
[1761671891751,0.01,4141.4,4141.2,2.414759]
[1761671891979,0.01,4141.4,4141.3,6.52440469]
[1761671893124,0.01,4141.4,4141.3,6.52540469]
[1761671893617,0.01,4141.4,4141.3,8.81132763]
[1761671896730,0.01,4141.4,4141.3,6.66132763]
[1761671896929,0.01,4141.4,4141.3,6.52440469]
[1761671897772,0.01,4141.4,4141.3,20.99563969]